[Event "AUT Bundesliga 2024-25"]
[Site "Austria"]
[Date "2025.04.04"]
[Round "9.18"]
[White "Platzgummer, Fabian"]
[Black "Balint, Peter"]
[Result "1-0"]
[Annotator "RC"]
[ECO "D79"]
[WhiteElo "2294"]
[BlackElo "2366"]
[PlyCount "161"]
[EventDate "2024.08.28"]
[EventType "team-tourn"]
[EventCountry "AUT"]
[SourceTitle "playchess.com"]
[Source "ChessBase"]
[SourceQuality "1"]
[TimeControl "40/5400+30:1800+30"]

1. Nf3 {[%emt 0:00:03]} Nf6 {[%emt 0:00:04]} 2. g3 {[%emt 0:00:39]} g6 {[%emt 0:00:06]} 3. Bg2 {[%emt 0:00:34]} Bg7 {[%emt 0:00:04]} 4. d4 {[%emt 0:00:14]} d5 {[%emt 0:00:04]} 5. c4 {[%emt 0:00:11]} c6 {[%emt 0:00:38]} 6. cxd5 {[%emt 0:04:17]} cxd5 {[%emt 0:00:35]} 7. Nc3 {[%emt 0:00:12]} Nc6 {[%emt 0:00:15]} 8. O-O {[%emt 0:00:52]} O-O {[%emt 0:00:27]} 9. Ne5 {[%emt 0:00:11]} Bf5 {[%emt 0:00:05]} 10. h3 {[%emt 0:15:53]} Ne4 {[%emt 0:13:01]} 11. Nxc6 {[%emt 0:20:14]} bxc6 {[%emt 0:00:10]} 12. g4 {[%emt 0:00:30]} Nxc3 {[%emt 0:00:42]} 13. bxc3 {[%emt 0:00:06]} Be6 {[%emt 1:20:49]} 14. f4 {[%emt 0:04:51]} f5 {[%emt 0:00:00]} 15. g5 {[%emt 0:02:54]} Qa5 {[%emt 0:00:00]} 16. Qb3 {[%emt 0:02:31]} Rfb8 {[%emt 0:00:00]} 17. Qa3 {[%emt 0:00:09]} Qc7 {[%emt 0:00:00]} 18. Be3 {[%emt 0:04:48]} Rb5 {[%emt 0:00:00]} 19. Rfb1 {[%emt 0:00:40]} Rab8 {[%emt 0:00:00]} 20. Rb3 {[%emt 0:01:54]} Bc8 {[%emt 0:00:00]} 21. Rab1 {[%emt 0:00:47]} e6 {[%emt 0:00:00]} 22. Qc1 {[%emt 0:14:52]} Ba6 {[%emt 0:00:00]} 23. Qc2 {[%emt 0:04:28]} R5b6 {[%emt 0:00:00]} 24. Bf1 {[%emt 0:04:16]} Bc4 {[%emt 0:00:00]} 25. R3b2 {[%emt 0:00:31]} Qb7 {[%emt 0:00:00]} 26. Bc1 {[%emt 0:02:29]} Qa6 {[%emt 0:00:00]} 27. Rxb6 {[%emt 0:00:42]} axb6 {[%emt 0:00:00]} 28. Ra1 {[%emt 0:01:34]} Bf8 {[%emt 0:00:00]} 29. h4 {[%emt 0:01:29]} h5 {[%emt 0:00:00]} 30. gxh6 {[%emt 0:00:32]} Bxh6 {[%emt 0:00:00]} 31. Qd2 {[%emt 0:00:53]} Kf7 {[%emt 0:00:00]} 32. a4 {[%emt 0:01:38]} Ra8 {[%emt 0:00:00]} 33. Ba3 {[%emt 0:01:03]} b5 {[%emt 0:00:00]} 34. axb5 {[%emt 0:04:46]} Qxb5 {[%emt 0:00:00]} 35. Qc1 {[%emt 0:00:46]} Bxe2 {[%emt 0:00:00]} 36. Bd6 {[%emt 0:00:57]} Rd8 {[%emt 0:00:00]} 37. Ra7+ {[%emt 0:01:34]} Kg8 {[%emt 0:00:00]} 38. Be7 {[%emt 0:02:08]} Bxf1 {[%emt 0:00:00]} 39. Bxd8 {[%emt 0:00:03]} Bd3 {[%emt 0:00:00]} 40. Bg5 {[%emt 0:01:02]} Bf8 {[%emt 0:00:00]} 41. Ra8 {[%emt 0:10:00]} Kf7 {[%emt 0:00:00]} 42. Qa1 {[%emt 0:03:25]} Qb1+ {[%emt 0:00:00]} 43. Qxb1 {[%emt 0:00:11]} Bxb1 {[%emt 0:00:00]} 44. Rc8 {[%emt 0:00:19]} Bd3 {[%emt 0:00:00]} 45. Rxc6 {[%emt 0:00:07]} Bc4 {[%emt 0:00:00]} 46. Kf2 {[%emt 0:00:42]} Ba3 {[%emt 0:00:00]} 47. Ke1 {[%emt 0:01:36]} Bf8 {[%emt 0:00:00]} 48. Kd2 {[%emt 0:00:12]} Bf1 {[%emt 0:00:00]} 49. Rc7+ {[%emt 0:00:08]} Ke8 {[%emt 0:00:00]} 50. Kc2 {[%emt 0:01:05]} Bc4 {[%emt 0:00:00]} 51. Ra7 {[%emt 0:00:49]} Bb5 {[%emt 0:00:00]} 52. Rh7 {[%emt 0:01:07]} Bd7 {[%emt 0:00:00]} 53. Kb3 {[%emt 0:01:01]} Bb5 {[%emt 0:00:00]} 54. Bf6 {[%emt 0:00:34]} Bc6 {[%emt 0:00:00]} 55. Kc2 {[%emt 0:01:37]} Bb5 {[%emt 0:00:00]} 56. Kd2 {[%emt 0:00:05]} Bc4 {[%emt 0:00:00]} 57. Be5 {[%emt 0:01:24]} Be7 {[%emt 0:00:00]} 58. Bc7 {[%emt 0:01:13]} Kf8 {[%emt 0:00:00]} 59. Bb6 {[%emt 0:00:18]} Bf6 {[%emt 0:00:00]} 60. h5 {[%emt 0:01:13]} gxh5 {[%emt 0:00:00]} 61. Rxh5 {[%emt 0:00:09]} Kf7 {[%emt 0:00:00]} 62. Rh7+ {[%emt 0:00:22]} Ke8 {[%emt 0:00:00]} 63. Bc5 {[%emt 0:00:06]} Bb5 {[%emt 0:00:00]} 64. Bd6 {[%emt 0:00:47]} Kd8 {[%emt 0:00:00]} 65. Rh6 {[%emt 0:00:21]} Kd7 {[%emt 0:00:00]} 66. Rxf6 {[%emt 0:00:07]} Kxd6 {[%emt 0:00:00]} 67. Rf7 {[%emt 0:00:10]} Be8 {[%emt 0:00:00]} 68. Ra7 {[%emt 0:00:10]} Bb5 {[%emt 0:00:00]} 69. Ke3 {[%emt 0:00:09]} Bc4 {[%emt 0:00:00]} 70. Kf3 {[%emt 0:00:04]} Bd3 {[%emt 0:00:00]} 71. Kg3 {[%emt 0:00:07]} Kc6 {[%emt 0:00:17]} 72. Re7 {[%emt 0:00:14]} Kd6 {[%emt 0:00:23]} 73. Rh7 {[%emt 0:00:05]} Kc6 {[%emt 0:00:04]} 74. Rh6 {[%emt 0:00:04]} Kb5 {[%emt 0:01:57]} 75. Rxe6 {[%emt 0:00:27]} Kc4 {[%emt 0:00:03]} 76. Rc6+ {[%emt 0:05:12]} Kb3 {[%emt 0:00:06]} 77. Kf2 {[%emt 0:02:21]} Bc4 {[%emt 0:00:13]} 78. Ke3 {[%emt 0:00:05]} Kxc3 {[%emt 0:00:07]} 79. Re6 {[%emt 0:00:09]} Bd3 {[%emt 0:00:32]} 80. Re5 {[%emt 0:00:05]} Kc4 {[%emt 0:00:27]} 81. Rxd5 {[%emt 0:00:20]} 1-0

[Event "AUT Bundesliga 2024-25"]
[Site "Austria"]
[Date "2025.04.04"]
[Round "9.19"]
[White "Karthik Venkataraman"]
[Black "Kadric, Denis"]
[Result "1/2-1/2"]
[Annotator "TA"]
[ECO "C41"]
[WhiteElo "2565"]
[BlackElo "2533"]
[PlyCount "63"]
[EventDate "2024.08.28"]
[EventType "team-tourn"]
[EventCountry "AUT"]
[SourceTitle "playchess.com"]
[Source "ChessBase"]
[SourceQuality "1"]
[TimeControl "40/5400+30:1800+30"]

{[%evp 12,63,29,39,36,50,37,36,35,35,28,31,41,27,30,25,27,32,40,43,57,29,55,29,53,47,56,47,53,33,59,25,39,44,47,0,0,0,10,0,0,0,0,0,0,0,0,0,0,-13,0,0,0,-7]} 1. e4 {[%emt 0:00:03]} d6 {[%emt 0:00:05]} 2. d4 {[%emt 0:00:08]} Nf6 {[%emt 0:00:01]} 3. Nc3 {[%emt 0:00:10]} e5 {[%emt 0:00:02]} 4. Nf3 {[%emt 0:00:28]} Nbd7 {[%emt 0:00:03]} 5. Bc4 {[%emt 0:00:08]} Be7 {[%emt 0:00:03]} 6. O-O {[%emt 0:00:08]} O-O {[%emt 0:00:02]} 7. Re1 {[%emt 0:00:08] 7.a4 is the hot move.} h6 {[%emt 0:03:31] C41: Philidor Defence.} 8. a4 {[%emt 0:00:27][%cal Ba2a4,Ba4a5][%mdl 32]} Re8 {[%emt 0:01:38]} 9. a5 {[%emt 0:01:30]} exd4 $146 {[%emt 0:02:13] White is slightly better.} (9... Bf8 10. a6 bxa6 11. Bxa6 Bxa6 12. Rxa6 exd4 13. Qxd4 Nc5 14. Ra1 a5 15. Bf4 Qb8 {1-0 Milosevic,G (2385)-Bosnjak,D (2326) BIH-chT Neum 2004 (7.5)}) 10. Nxd4 {[%emt 0:00:44]} (10. Qxd4 {looks sharper.} Ng4 11. a6 Nb6 12. Bb5) 10... Bf8 {[%emt 0:00:59]} 11. a6 {[%emt 0:07:25]} Ne5 {[%emt 0:02:38] Dodges h3} 12. Bb5 {[%emt 0:20:54]} c6 {[%emt 0:00:21]} 13. axb7 {[%emt 0:00:05]} Bxb7 {[%emt 0:00:02]} 14. Bf1 {[%emt 0:00:07]} a5 {[%emt 0:05:22][%cal Oa5a4]} 15. h3 {[%emt 0:01:36]} Qb6 {[%emt 0:01:42]} 16. Nf3 {[%emt 0:09:05]} Ng6 {[%emt 0:02:46]} 17. b3 {[%emt 0:04:21]} Rad8 {[%emt 0:05:02]} 18. Bb2 {[%emt 0:01:33]} Qc7 {[%emt 0:03:37]} 19. Qd2 {[%emt 0:01:22]} Ra8 {[%emt 0:15:05]} 20. Rad1 {[%emt 0:03:53]} Qb8 {[%emt 0:03:18]} 21. Qc1 {[%emt 0:03:01]} c5 {[%emt 0:02:04][%cal Rf6e4]} 22. Bb5 {[%emt 0:10:36]} Re7 {[%emt 0:02:08][%cal Rf6e4]} 23. Nd2 {[%emt 0:00:05]} (23. Bd3 $14 {was preferable.}) 23... Nxe4 $11 {[%emt 0:11:33] The position is equal.} 24. Ndxe4 {[%emt 0:00:12]} (24. Ncxe4 Bxe4 25. c4 (25. Nxe4 Qxb5 26. Re3 Qb8 $15) 25... Bf5 $15) 24... Bxe4 {[%emt 0:00:04]} 25. Rxe4 {[%emt 0:00:07]} ({But not} 25. Nxe4 Qxb5 26. Re3 Qb8 $15) 25... Rxe4 {[%emt 0:00:02]} 26. Nxe4 {[%emt 0:00:08]} Qxb5 {[%emt 0:00:01]} 27. Nxd6 {[%emt 0:00:09]} Qc6 {[%emt 0:00:06]} 28. Nf5 {[%emt 0:01:13] Against Nh4} a4 {[%emt 0:05:24]} 29. bxa4 $1 {[%emt 0:11:04]} Qe4 {[%emt 0:00:03]} 30. Ng3 {[%emt 0:00:33]} Qxa4 {[%emt 0:00:14]} 31. Qd2 {[%emt 0:00:46]} Qc4 {[%emt 0:00:38]} 32. Qc3 {[%emt 0:01:13] Weighted Error Value: White=0.09 (flawless) /Black=0.06 (flawless)   Mistake:       	White=1     	---        Inaccurate:     	White=3     	Black=2      OK:         	White=5     	Black=7      Best:        	White=2     	Black=1      Strong:       	White=1     	---} 1/2-1/2

[Event "AUT Bundesliga 2024-25"]
[Site "Austria"]
[Date "2025.04.04"]
[Round "9.20"]
[White "Petrov, Nikita"]
[Black "Pajeken, Jakob Leon"]
[Result "0-1"]
[Annotator "RC"]
[ECO "A08"]
[WhiteElo "2567"]
[BlackElo "2435"]
[PlyCount "106"]
[EventDate "2024.08.28"]
[EventType "team-tourn"]
[EventCountry "AUT"]
[SourceTitle "playchess.com"]
[Source "ChessBase"]
[SourceQuality "1"]
[TimeControl "40/5400+30:1800+30"]

1. Nf3 {[%emt 0:00:04]} d5 {[%emt 0:00:13]} 2. g3 {[%emt 0:00:20]} Nf6 {[%emt 0:00:14]} 3. Bg2 {[%emt 0:00:10]} c5 {[%emt 0:00:05]} 4. O-O {[%emt 0:01:08]} g6 {[%emt 0:00:03]} 5. d3 {[%emt 0:03:57]} Bg7 {[%emt 0:00:26]} 6. Nbd2 {[%emt 0:02:39]} O-O {[%emt 0:01:13]} 7. e4 {[%emt 0:00:33]} Nc6 {[%emt 0:00:35]} 8. Re1 {[%emt 0:01:25]} Qc7 {[%emt 0:06:00]} 9. exd5 {[%emt 0:06:05]} Nxd5 {[%emt 0:02:07]} 10. Nb3 {[%emt 0:00:20]} Bg4 {[%emt 0:08:41]} 11. h3 {[%emt 0:05:15]} Bxf3 {[%emt 0:00:27]} 12. Qxf3 {[%emt 0:04:38]} Rad8 {[%emt 0:08:58]} 13. c3 {[%emt 0:11:59]} b6 {[%emt 0:04:01]} 14. Qe2 {[%emt 0:05:47]} Rd7 {[%emt 0:14:20]} 15. Bd2 {[%emt 0:02:34]} Rfd8 {[%emt 0:01:44]} 16. Rad1 {[%emt 0:00:25]} h5 {[%emt 0:02:11]} 17. h4 {[%emt 0:01:01]} e5 {[%emt 0:09:42]} 18. Bg5 {[%emt 0:04:18]} f6 {[%emt 0:02:27]} 19. Bc1 {[%emt 0:00:23]} Nde7 {[%emt 0:01:32]} 20. Bh3 {[%emt 0:05:09]} Rd6 {[%emt 0:03:11]} 21. Na1 {[%emt 0:06:27]} f5 {[%emt 0:03:36]} 22. Bg5 {[%emt 0:09:49]} Qd7 {[%emt 0:02:35]} 23. Bf1 {[%emt 0:05:03]} e4 {[%emt 0:01:59]} 24. Bxe7 {[%emt 0:09:32]} Nxe7 {[%emt 0:00:42]} 25. f4 {[%emt 0:11:45]} Nc6 {[%emt 0:04:14]} 26. Qg2 {[%emt 0:01:06]} exd3 {[%emt 0:00:47]} 27. Nb3 {[%emt 0:00:12]} c4 {[%emt 0:01:58]} 28. Nd2 {[%emt 0:00:03]} b5 {[%emt 0:00:48]} 29. a4 {[%emt 0:00:18]} a6 {[%emt 0:00:13]} 30. axb5 {[%emt 0:00:04]} axb5 {[%emt 0:00:04]} 31. Ra1 {[%emt 0:00:05]} Re8 {[%emt 0:02:46]} 32. Rxe8+ {[%emt 0:00:55]} Qxe8 {[%emt 0:00:01]} 33. Ra6 {[%emt 0:01:40]} Qd7 {[%emt 0:01:29]} 34. Qf2 {[%emt 0:00:54]} Nd4 {[%emt 0:00:54]} 35. Ra8+ {[%emt 0:00:23]} Kh7 {[%emt 0:00:08]} 36. Kh2 {[%emt 0:00:48]} Nb3 {[%emt 0:03:08]} 37. Nxb3 {[%emt 0:01:05]} cxb3 {[%emt 0:00:01]} 38. Ra7 {[%emt 0:00:14]} Qd8 {[%emt 0:05:04]} 39. Qd2 {[%emt 0:00:23]} Kh6 {[%emt 0:00:53]} 40. Ra3 {[%emt 0:00:58]} Qg8 {[%emt 0:01:15]} 41. Ra1 {[%emt 0:06:32]} Qc4 {[%emt 0:01:12]} 42. Rd1 {[%emt 0:00:50]} b4 {[%emt 0:00:35]} 43. Bxd3 {[%emt 0:00:12]} bxc3 {[%emt 0:00:06]} 44. Bxc4 {[%emt 0:01:03]} Rxd2+ {[%emt 0:00:24]} 45. Rxd2 {[%emt 0:00:04]} c2 {[%emt 0:00:06]} 46. Bxb3 {[%emt 0:00:06]} c1=Q {[%emt 0:00:07]} 47. Rg2 {[%emt 0:00:05]} Bxb2 {[%emt 0:00:25]} 48. Bd5 {[%emt 0:00:21]} Bd4 {[%emt 0:00:51]} 49. Bf3 {[%emt 0:01:13]} Qe1 {[%emt 0:00:37]} 50. Bd5 {[%emt 0:00:43]} Be3 {[%emt 0:00:55]} 51. Bf7 {[%emt 0:01:52]} Kg7 {[%emt 0:00:15]} 52. Bb3 {[%emt 0:00:04]} Kf6 {[%emt 0:00:22]} 53. Bc4 {[%emt 0:00:07]} Bxf4 {[%emt 0:00:32]} 0-1

[Event "AUT Bundesliga 2024-25"]
[Site "Austria"]
[Date "2025.04.04"]
[Round "9.21"]
[White "Janzelj, Tim"]
[Black "Erdos, Viktor"]
[Result "1/2-1/2"]
[Annotator "TA"]
[ECO "A03"]
[WhiteElo "2404"]
[BlackElo "2542"]
[PlyCount "62"]
[EventDate "2024.08.28"]
[EventType "team-tourn"]
[EventCountry "AUT"]
[SourceTitle "playchess.com"]
[Source "ChessBase"]
[SourceQuality "1"]
[TimeControl "40/5400+30:1800+30"]

{[%evp 9,62,-18,-22,-28,-6,-24,-15,-31,-29,-29,-25,-46,-26,-31,-31,-36,-22,-25,-9,-29,-30,-44,-42,-26,-20,-14,-21,-29,-21,-30,0,-74,-66,-76,-68,-79,-7,-6,-4,0,8,-10,0,0,0,0,14,8,12,0,18,0,0,0,0]} 1. f4 {[%emt 0:00:04]} d5 {[%emt 0:04:22]} 2. Nf3 {[%emt 0:00:13]} g6 {[%emt 0:00:10]} 3. d3 {[%emt 0:01:02]} Nf6 {[%emt 0:12:52]} 4. Nbd2 {[%emt 0:00:30]} Nc6 {[%emt 0:22:30]} 5. g3 $146 {[%emt 0:07:06]} (5. c3 Qd6 6. g3 e5 7. fxe5 Nxe5 8. Nxe5 Qxe5 9. Nf3 Qe7 10. Bg2 Bg7 11. O-O O-O {1-0 Larsen,B-Aronin,L Moscow 1962}) 5... Bg7 {[%emt 0:03:11]} 6. Bg2 {[%emt 0:00:43] A03: Bird's Opening with 1...d5.} O-O {[%emt 0:00:07]} 7. O-O {[%emt 0:01:52] [#]} e5 $1 {[%emt 0:05:22]} 8. fxe5 {[%emt 0:13:49]} (8. Nxe5 Nxe5) 8... Ng4 {[%emt 0:00:16][%cal Og4e3]} 9. Nb3 $1 {[%emt 0:00:05]} Ngxe5 {[%emt 0:01:26]} 10. c3 {[%emt 0:09:03]} Nxf3+ {[%emt 0:09:18]} 11. exf3 {[%emt 0:00:43]} a5 {[%emt 0:01:29]} 12. d4 {[%emt 0:02:55]} b6 {[%emt 0:12:13]} 13. a4 {[%emt 0:02:24]} Re8 {[%emt 0:00:18]} 14. Bf4 {[%emt 0:02:14]} Ba6 {[%emt 0:02:46]} 15. Re1 {[%emt 0:00:08]} Rxe1+ {[%emt 0:03:03]} 16. Qxe1 {[%emt 0:00:02]} Qd7 {[%emt 0:00:04]} 17. Bf1 {[%emt 0:06:55]} Re8 {[%emt 0:00:17]} 18. Qf2 {[%emt 0:00:05]} Bxf1 {[%emt 0:01:14]} 19. Qxf1 {[%emt 0:00:58]} Nd8 {[%emt 0:08:41]} 20. Kf2 {[%emt 0:09:08]} (20. Qb5 $11 Qxb5 21. axb5) 20... Ne6 $17 {[%emt 0:01:24] aiming for ...Nxf4.} 21. Be3 {[%emt 0:01:36]} Bf8 {[%emt 0:01:09]} 22. Qb5 {[%emt 0:01:26] [#]} Qxb5 {[%emt 0:00:15]} (22... c6 $1 $17 {[%cal Rc6b5]} 23. Qxb6 Bd6 24. Nxa5 (24. Qxa5 $2 {too greedy.} Qb7 $19) 24... Ng7 25. Nxc6 Qh3) 23. axb5 $11 {[%emt 0:00:01] The position is equal.} Bd6 {[%emt 0:03:19]} 24. Nc1 {[%emt 0:00:58]} Rc8 {[%emt 0:03:49]} 25. Ke2 {[%emt 0:05:01]} Kf8 {[%emt 0:02:37]} 26. b3 {[%emt 0:00:52]} c6 {[%emt 0:00:27]} 27. bxc6 {[%emt 0:00:09]} Rxc6 {[%emt 0:00:01]} 28. Kd3 {[%emt 0:00:15]} Rc8 {[%emt 0:00:39]} 29. Ne2 {[%emt 0:01:41]} Nc7 {[%emt 0:00:42]} 30. h4 {[%emt 0:11:50]} Ke7 {[%emt 0:00:10]} 31. g4 {[%emt 0:00:44]} Kd7 {[%emt 0:00:10] Weighted Error Value: White=0.10 (very precise) /Black=0.09 (flawless)   Mistake:       	White=1     	Black=1      Inaccurate:     	---       	Black=1      OK:         	White=9     	Black=12     Strong:       	White=1     	---} 1/2-1/2

[Event "AUT Bundesliga 2024-25"]
[Site "Austria"]
[Date "2025.04.04"]
[Round "9.22"]
[White "Sankalp Gupta"]
[Black "Sebenik, Matej"]
[Result "1-0"]
[Annotator "TA"]
[ECO "C42"]
[WhiteElo "2548"]
[BlackElo "2491"]
[PlyCount "73"]
[EventDate "2024.08.28"]
[EventType "team-tourn"]
[EventCountry "AUT"]
[SourceTitle "playchess.com"]
[Source "ChessBase"]
[SourceQuality "1"]
[TimeControl "40/5400+30:1800+30"]

{[%evp 13,73,9,12,8,44,0,3,0,0,0,16,12,21,15,16,23,17,17,25,25,32,21,25,0,28,-7,0,0,3,-36,31,31,30,0,61,16,6,15,16,9,18,22,12,19,114,104,173,151,580,304,616,616,706,699,688,337,688,677,1327,1325,29991,29992]} 1. e4 {[%emt 0:00:21]} e5 {[%emt 0:00:28]} 2. Nf3 {[%emt 0:00:06]} Nf6 {[%emt 0:00:13]} 3. Nxe5 {[%emt 0:02:38]} d6 {[%emt 0:00:10]} 4. Nf3 {[%emt 0:00:05]} Nxe4 {[%emt 0:00:06]} 5. Nc3 {[%emt 1:29:50]} Nxc3 {[%emt 1:32:03]} 6. dxc3 {[%emt 0:00:00]} Be7 {[%emt 0:00:00]} 7. Be3 {[%emt 0:00:00]} Nd7 {[%emt 0:00:00]} 8. Qd2 {[%emt 0:00:00] C42: Petroff Defence: 3 Nxe5 and unusual White 3rd moves.} Ne5 {[%emt 0:00:00]} 9. Be2 {[%emt 0:00:00]} O-O {[%emt 0:00:00]} 10. Bf4 $5 $146 {[%emt 0:00:00][%mdl 8] The position is equal. An interesting novelty.} (10. O-O Be6 11. b3 Nxf3+ 12. Bxf3 d5 13. Rfe1 c6 14. a4 Re8 15. Bd4 Bg5 16. Be3 {½-½ Anton Guijarro,D (2639)-Li,C (2751) Gibraltar Masters 14th 2016 (8)}) 10... Nxf3+ {[%emt 0:00:00]} 11. Bxf3 {[%emt 0:00:00]} Be6 {[%emt 0:00:00]} 12. O-O-O {[%emt 0:00:00]} (12. Bxb7 Rb8 13. Bf3 Rxb2 $15) 12... Rb8 {[%emt 0:00:00][%cal Oa7a5]} 13. Kb1 {[%emt 0:00:00]} Qd7 {[%emt 0:00:00]} 14. h4 {[%emt 0:00:00]} b5 {[%emt 0:00:00][%cal Bb7b5,Bb5b4][%mdl 32]} 15. h5 {[%emt 0:00:00]} h6 {[%emt 0:00:00] [#]} 16. g4 $1 {[%emt 0:00:00]} b4 {[%emt 0:00:00]} (16... Bxg4 17. Bxg4 Qxg4 18. Bxh6 (18. Rdg1 Qf5 $18) 18... gxh6 19. Rdg1 $18) 17. c4 {[%emt 0:00:00][%cal Of4h6]} (17. cxb4 Qa4 18. a3 a5 $17) 17... Bxc4 {[%emt 0:00:00]} (17... Bxg4 $2 18. Bxg4 Qxg4 19. Rdg1 $18) 18. b3 $1 {[%emt 0:00:00]} Be6 {[%emt 0:00:00]} 19. g5 {[%emt 0:00:00] Dodges Bf6} (19. Bxh6 Bf6 20. Bg5 Bc3 21. Qd3) 19... Bxg5 {[%emt 0:00:00]} 20. Bxg5 {[%emt 0:00:00]} hxg5 {[%emt 0:00:00]} 21. h6 {[%emt 0:00:00] [#]} Rb5 {[%emt 0:00:00]} (21... g6 $1 $15) 22. hxg7 $14 {[%emt 0:00:00]} Kxg7 {[%emt 0:00:00]} 23. Be4 {[%emt 0:00:00]} Rg8 {[%emt 0:00:00]} (23... Kf6 $1 $11) 24. f4 $40 {[%emt 0:00:00][%mdl 128] and Rdg1 would now be decisive White mounts an attack. White is more active.} (24. Rde1 {is more complex.} Kf6 25. Bh7 Rf8 26. Bd3) 24... Kf8 {[%emt 0:00:00]} 25. Bd3 {[%emt 0:00:00]} Rc5 {[%emt 0:01:09]} 26. Qxb4 {[%emt 0:00:18]} Bf5 {[%emt 0:03:23]} 27. fxg5 {[%emt 0:00:40][%cal Og5g6] With the idea g6!.} a5 {[%emt 0:02:15]} 28. Qb7 {[%emt 0:04:31]} (28. Qh4 {simplifies} Bxd3 29. Rxd3 Rgxg5 30. Rf3) 28... Kg7 {[%emt 0:01:07] Dodges g6} (28... Qc8 $11 29. Qg2 Bxd3 30. cxd3 (30. Rxd3 Rcxg5 31. Qh2 Qe6 $14) 30... Rcxg5) 29. Qg2 $16 {[%emt 0:00:33]} Re5 {[%emt 0:03:27]} (29... Bxd3 $16 30. Rxd3 Qe6) 30. Qh2 {[%emt 0:04:41][%csl Gg5,Gh1][%cal Rh2h6] White attacks} (30. Qf3 $6 Bxd3 31. Qxd3 (31. Rxd3 Qe6 $15) 31... Kf8 $16) 30... Qe6 {[%emt 0:00:02] This costs Black the game.} (30... Kf8 $16 {is tougher.}) 31. g6 {[%emt 0:01:23]} fxg6 {[%emt 0:00:48]} (31... Bxd3 32. Qh6+ (32. cxd3 Kf8 $16) (32. Rxd3 Re1+ 33. Rd1 Rxd1+ 34. Rxd1 Rh8 $18) 32... Kf6) 32. Bxf5 $18 {[%emt 0:00:48]} (32. Qh7+ Kf6 33. Bxf5 (33. Qxc7 Rc8 $16) 33... Rxf5 34. Qxc7 Rc8 $18) 32... Rxf5 {[%emt 0:00:33]} 33. Rde1 {[%emt 0:00:19]} ({Less strong is} 33. Qh7+ Kf6 $16) 33... Qf7 {[%emt 0:00:42]} 34. Qh6+ {[%emt 0:00:37]} Kf6 {[%emt 0:00:03]} 35. Rhf1 {[%emt 0:00:34] White threatens Rxf5+ and mate.} Qd5 {[%emt 0:00:56]} 36. Qh4+ {[%emt 0:00:18]} g5 {[%emt 0:00:32]} 37. Qh6+ {[%emt 0:00:35] Weighted Error Value: White=0.21 (precise) /Black=0.98  Loses game:     	---       	Black=1      Mistake:       	---       	Black=5      Inaccurate:     	White=5     	Black=2      OK:         	White=13    	Black=7      Best:        	---       	Black=1      Strong:       	White=1     	---} 1-0